[Event "January 9 Late 2024"]
[Site "https://www.chess.com"]
[Date "2024.01.09"]
[Round "3"]
[White "Hambleton, Aman"]
[Black "Tikhonov, Viacheslav"]
[Result "1/2-1/2"]
[Board "83"]
[TimeControl "180+1"]
[WhiteFideId "2606577"]
[BlackFideId "44196407"]
[WhiteElo "2711"]
[BlackElo "2523"]
[WhiteTeam "CAN"]
[BlackTeam "RUS"]
[WhiteClock "0:00:01"]
[BlackClock "0:00:15"]

1. d4 {[%clk 0:02:53]}  Nf6 {[%clk 0:02:59]} 2. Bf4 {[%clk 0:02:51]}  d5 {[%clk 0:02:54]} 3. e3 {[%clk 0:02:52]}  c5 {[%clk 0:02:46]} 4. c3 {[%clk 0:02:52]}  e6 {[%clk 0:02:46]} 5. Nd2 {[%clk 0:02:52]}  Bd6 {[%clk 0:02:47]} 6. Ngf3 {[%clk 0:02:52]}  Bxf4 {[%clk 0:02:45]} 7. exf4 {[%clk 0:02:53]}  cxd4 {[%clk 0:02:45]} 8. Nxd4 {[%clk 0:02:54]}  Nc6 {[%clk 0:02:45]} 9. N2f3 {[%clk 0:02:54]}  O-O {[%clk 0:02:40]} 10. Bd3 {[%clk 0:02:51]}  Qc7 {[%clk 0:02:34]} 11. g3 {[%clk 0:02:52]}  Nxd4 {[%clk 0:02:33]} 12. Nxd4 {[%clk 0:02:52]}  e5 {[%clk 0:02:33]} 13. fxe5 {[%clk 0:02:53]}  Qxe5+ {[%clk 0:02:34]} 14. Qe2 {[%clk 0:02:53]}  Qxe2+ {[%clk 0:02:32]} 15. Kxe2 {[%clk 0:02:54]}  Bg4+ {[%clk 0:02:32]} 16. f3 {[%clk 0:02:54]}  Rfe8+ {[%clk 0:02:33]} 17. Kf2 {[%clk 0:02:55]}  Bd7 {[%clk 0:02:32]} 18. g4 {[%clk 0:02:50]}  h6 {[%clk 0:02:25]} 19. h4 {[%clk 0:02:49]}  Re5 {[%clk 0:02:23]} 20. Rad1 {[%clk 0:02:35]}  Rae8 {[%clk 0:02:16]} 21. Rhg1 {[%clk 0:02:22]}  Kf8 {[%clk 0:02:10]} 22. Rd2 {[%clk 0:02:18]}  a6 {[%clk 0:02:07]} 23. a3 {[%clk 0:02:02]}  Bc8 {[%clk 0:02:05]} 24. Bb1 {[%clk 0:01:58]}  Nd7 {[%clk 0:01:59]} 25. Ne2 {[%clk 0:01:53]}  Nb6 {[%clk 0:01:56]} 26. Ba2 {[%clk 0:01:52]}  Bd7 {[%clk 0:01:52]} 27. Nf4 {[%clk 0:01:50]}  Bc6 {[%clk 0:01:52]} 28. Re2 {[%clk 0:01:40]}  Rxe2+ {[%clk 0:01:50]} 29. Nxe2 {[%clk 0:01:41]}  Bb5 {[%clk 0:01:50]} 30. Nd4 {[%clk 0:01:36]}  Bc4 {[%clk 0:01:50]} 31. Bb1 {[%clk 0:01:37]}  Nd7 {[%clk 0:01:48]} 32. Rd1 {[%clk 0:01:31]}  Nc5 {[%clk 0:01:44]} 33. Bc2 {[%clk 0:01:29]}  a5 {[%clk 0:01:39]} 34. Rd2 {[%clk 0:01:16]}  a4 {[%clk 0:01:39]} 35. Nf5 {[%clk 0:01:16]}  b5 {[%clk 0:01:27]} 36. Ne3 {[%clk 0:01:13]}  Re5 {[%clk 0:01:17]} 37. Rd4 {[%clk 0:00:54]}  Ne6 {[%clk 0:01:05]} 38. Rd2 {[%clk 0:00:49]}  Nf4 {[%clk 0:01:03]} 39. Nf5 {[%clk 0:00:23]}  g6 {[%clk 0:00:46]} 40. Nxh6 {[%clk 0:00:12]}  f6 {[%clk 0:00:34]} 41. g5 {[%clk 0:00:06]}  f5 {[%clk 0:00:28]} 42. Kg3 {[%clk 0:00:03]}  Ne2+ {[%clk 0:00:23]} 43. Kf2 {[%clk 0:00:03]}  Nf4 {[%clk 0:00:21]} 44. Bb1 {[%clk 0:00:02]}  Kg7 {[%clk 0:00:16]} 45. Bc2 {[%clk 0:00:01]}  Kf8 {[%clk 0:00:15]} 1/2-1/2

[Event "January 9 Late 2024"]
[Site "https://www.chess.com"]
[Date "2024.01.09"]
[Round "3"]
[White "Rozman, Levy"]
[Black "Tissir, Mohamed"]
[Result "1-0"]
[Board "84"]
[TimeControl "180+1"]
[WhiteFideId "2039877"]
[BlackFideId "9000240"]
[WhiteElo "2706"]
[BlackElo "2520"]
[WhiteTeam "USA"]
[BlackTeam "MAR"]
[WhiteClock "0:00:08"]
[BlackClock "0:00:04"]

1. e4 {[%clk 0:02:58]}  c5 {[%clk 0:02:58]} 2. a3 {[%clk 0:02:57]}  Qc7 {[%clk 0:02:56]} 3. Nc3 {[%clk 0:02:57]}  e6 {[%clk 0:02:56]} 4. Nf3 {[%clk 0:02:54]}  a6 {[%clk 0:02:56]} 5. d4 {[%clk 0:02:47]}  cxd4 {[%clk 0:02:56]} 6. Qxd4 {[%clk 0:02:48]}  Nc6 {[%clk 0:02:55]} 7. Qd3 {[%clk 0:02:47]}  b5 {[%clk 0:02:54]} 8. Be2 {[%clk 0:02:44]}  Bb7 {[%clk 0:02:54]} 9. Bg5 {[%clk 0:02:41]}  Nf6 {[%clk 0:02:53]} 10. O-O {[%clk 0:02:35]}  Ng4 {[%clk 0:02:51]} 11. Bh4 {[%clk 0:02:25]}  Bd6 {[%clk 0:02:42]} 12. Bg3 {[%clk 0:02:23]}  Bxg3 {[%clk 0:02:41]} 13. hxg3 {[%clk 0:02:24]}  O-O {[%clk 0:02:38]} 14. Rad1 {[%clk 0:02:15]}  Rfd8 {[%clk 0:02:28]} 15. Nd4 {[%clk 0:01:48]}  Nge5 {[%clk 0:02:17]} 16. Qe3 {[%clk 0:01:46]}  Nxd4 {[%clk 0:02:15]} 17. Rxd4 {[%clk 0:01:46]}  Rac8 {[%clk 0:02:16]} 18. Rfd1 {[%clk 0:01:43]}  Ng6 {[%clk 0:01:04]} 19. f4 {[%clk 0:01:33]}  e5 {[%clk 0:01:04]} 20. Rd6 {[%clk 0:01:33]}  Qc5 {[%clk 0:00:54]} 21. Qxc5 {[%clk 0:01:31]}  Rxc5 {[%clk 0:00:55]} 22. Rxd7 {[%clk 0:01:29]}  Rxd7 {[%clk 0:00:50]} 23. Rxd7 {[%clk 0:01:29]}  Bc6 {[%clk 0:00:49]} 24. Rd8+ {[%clk 0:01:27]}  Nf8 {[%clk 0:00:49]} 25. Rc8 {[%clk 0:01:28]}  g6 {[%clk 0:00:40]} 26. f5 {[%clk 0:01:22]}  f6 {[%clk 0:00:37]} 27. Bd3 {[%clk 0:00:57]}  Kg7 {[%clk 0:00:33]} 28. Ne2 {[%clk 0:00:43]}  gxf5 {[%clk 0:00:24]} 29. b4 {[%clk 0:00:19]}  fxe4 {[%clk 0:00:24]} 30. bxc5 {[%clk 0:00:18]}  exd3 {[%clk 0:00:23]} 31. Rxc6 {[%clk 0:00:16]}  dxe2 {[%clk 0:00:20]} 32. Kf2 {[%clk 0:00:16]}  Ng6 {[%clk 0:00:15]} 33. Rd6 {[%clk 0:00:12]}  e4 {[%clk 0:00:10]} 34. c6 {[%clk 0:00:11]}  Ne5 {[%clk 0:00:04]} 35. c7 {[%clk 0:00:08]} 1-0

[Event "January 9 Late 2024"]
[Site "https://www.chess.com"]
[Date "2024.01.09"]
[Round "3"]
[White "Play, Gilles"]
[Black "Dyachuk, Artem"]
[Result "1-0"]
[Board "86"]
[TimeControl "180+1"]
[WhiteFideId "45130892"]
[BlackFideId "34107924"]
[WhiteElo "2513"]
[BlackElo "2697"]
[WhiteTeam "FRA"]
[BlackTeam "UKR"]
[WhiteClock "0:00:08"]
[BlackClock "0:00:00"]

1. e4 {[%clk 0:03:00]}  c5 {[%clk 0:02:58]} 2. c3 {[%clk 0:02:59]}  d5 {[%clk 0:02:54]} 3. exd5 {[%clk 0:02:59]}  Qxd5 {[%clk 0:02:55]} 4. d4 {[%clk 0:03:00]}  Nf6 {[%clk 0:02:53]} 5. Nf3 {[%clk 0:02:59]}  e6 {[%clk 0:02:53]} 6. Na3 {[%clk 0:02:59]}  Be7 {[%clk 0:02:52]} 7. Nb5 {[%clk 0:02:59]}  Na6 {[%clk 0:02:48]} 8. Be2 {[%clk 0:02:55]}  O-O {[%clk 0:02:47]} 9. O-O {[%clk 0:02:55]}  Qd8 {[%clk 0:02:45]} 10. Bf4 {[%clk 0:02:52]}  Nd5 {[%clk 0:02:43]} 11. Bg3 {[%clk 0:02:52]}  b6 {[%clk 0:02:38]} 12. Ne5 {[%clk 0:02:39]}  Bb7 {[%clk 0:02:35]} 13. Bf3 {[%clk 0:02:33]}  cxd4 {[%clk 0:02:30]} 14. c4 {[%clk 0:02:28]}  Bf6 {[%clk 0:02:16]} 15. cxd5 {[%clk 0:02:27]}  Bxd5 {[%clk 0:02:17]} 16. Qxd4 {[%clk 0:02:18]}  Bxf3 {[%clk 0:02:14]} 17. Qxd8 {[%clk 0:02:18]}  Rfxd8 {[%clk 0:02:15]} 18. Nxf3 {[%clk 0:02:11]}  Bxb2 {[%clk 0:02:15]} 19. Rad1 {[%clk 0:02:05]}  h6 {[%clk 0:02:09]} 20. Rxd8+ {[%clk 0:02:02]}  Rxd8 {[%clk 0:02:08]} 21. Nxa7 {[%clk 0:02:02]}  Ra8 {[%clk 0:02:06]} 22. Nc6 {[%clk 0:02:00]}  Nc5 {[%clk 0:02:00]} 23. h3 {[%clk 0:01:36]}  Rxa2 {[%clk 0:01:57]} 24. Ne7+ {[%clk 0:01:35]}  Kh7 {[%clk 0:01:54]} 25. Nc8 {[%clk 0:01:35]}  b5 {[%clk 0:01:49]} 26. Nd6 {[%clk 0:01:35]}  b4 {[%clk 0:01:49]} 27. Nc4 {[%clk 0:01:23]}  Bc3 {[%clk 0:01:46]} 28. Bd6 {[%clk 0:01:21]}  Ne4 {[%clk 0:01:43]} 29. Be5 {[%clk 0:01:15]}  Bxe5 {[%clk 0:01:21]} 30. Nfxe5 {[%clk 0:01:16]}  b3 {[%clk 0:01:21]} 31. Rb1 {[%clk 0:01:13]}  Rc2 {[%clk 0:00:53]} 32. Rxb3 {[%clk 0:01:07]}  f6 {[%clk 0:00:52]} 33. Nd7 {[%clk 0:00:37]}  Rxc4 {[%clk 0:00:48]} 34. Nf8+ {[%clk 0:00:37]}  Kg8 {[%clk 0:00:47]} 35. Nxe6 {[%clk 0:00:38]}  Rc1+ {[%clk 0:00:47]} 36. Kh2 {[%clk 0:00:38]}  Kf7 {[%clk 0:00:21]} 37. Nd4 {[%clk 0:00:33]}  Nxf2 {[%clk 0:00:19]} 38. Rb7+ {[%clk 0:00:33]}  Kg6 {[%clk 0:00:19]} 39. Ne6 {[%clk 0:00:33]}  Rh1+ {[%clk 0:00:18]} 40. Kg3 {[%clk 0:00:33]}  Ne4+ {[%clk 0:00:18]} 41. Kf4 {[%clk 0:00:33]}  f5 {[%clk 0:00:08]} 42. g4 {[%clk 0:00:24]}  Rf1+ {[%clk 0:00:03]} 43. Ke5 {[%clk 0:00:24]}  fxg4 {[%clk 0:00:02]} 44. hxg4 {[%clk 0:00:23]}  Kh7 {[%clk 0:00:01]} 45. Kxe4 {[%clk 0:00:19]}  Re1+ {[%clk 0:00:01]} 46. Kd5 {[%clk 0:00:19]}  Rd1+ {[%clk 0:00:01]} 47. Ke5 {[%clk 0:00:19]}  Re1+ {[%clk 0:00:01]} 48. Kd6 {[%clk 0:00:19]}  Rd1+ {[%clk 0:00:01]} 49. Ke7 {[%clk 0:00:19]}  Kg6 {[%clk 0:00:02]} 50. Ke8 {[%clk 0:00:17]}  Kf6 {[%clk 0:00:01]} 51. Nxg7 {[%clk 0:00:16]}  Kg5 {[%clk 0:00:02]} 52. Rb4 {[%clk 0:00:12]}  Rg1 {[%clk 0:00:02]} 53. Ne6+ {[%clk 0:00:09]}  Kh4 {[%clk 0:00:02]} 54. g5+ {[%clk 0:00:09]}  Kh5 {[%clk 0:00:02]} 55. Nf4+ {[%clk 0:00:08]}  Kg4 {[%clk 0:00:01]} 56. Ne2+ {[%clk 0:00:08]}  Kxg5 {[%clk 0:00:00]} 57. Nxg1 {[%clk 0:00:08]} 1-0

[Event "January 9 Late 2024"]
[Site "https://www.chess.com"]
[Date "2024.01.09"]
[Round "3"]
[White "Tarhan, Adar"]
[Black "Mullodzhanov, Nathaniel"]
[Result "1-0"]
[Board "87"]
[TimeControl "180+1"]
[WhiteFideId "34544712"]
[BlackFideId "30961580"]
[WhiteElo "2696"]
[BlackElo "2512"]
[WhiteTeam "TUR"]
[BlackTeam "USA"]
[WhiteClock "0:00:21"]
[BlackClock "0:00:09"]

1. e4 {[%clk 0:03:00]}  c6 {[%clk 0:03:00]} 2. d4 {[%clk 0:03:00]}  d5 {[%clk 0:03:00]} 3. Nc3 {[%clk 0:03:00]}  dxe4 {[%clk 0:03:00]} 4. Nxe4 {[%clk 0:03:01]}  Nf6 {[%clk 0:03:01]} 5. Nxf6+ {[%clk 0:03:01]}  exf6 {[%clk 0:03:02]} 6. Bc4 {[%clk 0:02:58]}  Bd6 {[%clk 0:03:02]} 7. Qe2+ {[%clk 0:02:58]}  Qe7 {[%clk 0:03:02]} 8. Qxe7+ {[%clk 0:02:54]}  Kxe7 {[%clk 0:03:02]} 9. Ne2 {[%clk 0:02:54]}  Be6 {[%clk 0:03:01]} 10. Bd3 {[%clk 0:02:55]}  Nd7 {[%clk 0:02:57]} 11. Nf4 {[%clk 0:02:55]}  Rhe8 {[%clk 0:02:48]} 12. Nxe6 {[%clk 0:02:54]}  fxe6 {[%clk 0:02:45]} 13. Bxh7 {[%clk 0:02:41]}  f5 {[%clk 0:02:41]} 14. Bg6 {[%clk 0:02:38]}  Rh8 {[%clk 0:02:40]} 15. Bg5+ {[%clk 0:02:38]}  Nf6 {[%clk 0:02:40]} 16. h4 {[%clk 0:02:37]}  Raf8 {[%clk 0:02:09]} 17. O-O-O {[%clk 0:02:35]}  Kd7 {[%clk 0:02:09]} 18. f3 {[%clk 0:02:35]}  Nd5 {[%clk 0:02:07]} 19. c4 {[%clk 0:02:05]}  Bf4+ {[%clk 0:01:55]} 20. Kb1 {[%clk 0:02:03]}  Bxg5 {[%clk 0:01:50]} 21. cxd5 {[%clk 0:01:58]}  Bxh4 {[%clk 0:01:46]} 22. dxe6+ {[%clk 0:01:48]}  Kxe6 {[%clk 0:01:40]} 23. g4 {[%clk 0:01:45]}  f4 {[%clk 0:01:28]} 24. Bc2 {[%clk 0:01:41]}  Bf2 {[%clk 0:01:24]} 25. Bb3+ {[%clk 0:01:35]}  Kd6 {[%clk 0:01:22]} 26. Rhf1 {[%clk 0:01:28]}  Be3 {[%clk 0:01:21]} 27. d5 {[%clk 0:01:28]}  c5 {[%clk 0:01:21]} 28. Rh1 {[%clk 0:01:27]}  b5 {[%clk 0:01:21]} 29. Bc2 {[%clk 0:01:25]}  a5 {[%clk 0:01:20]} 30. Be4 {[%clk 0:01:24]}  c4 {[%clk 0:01:13]} 31. Rh5 {[%clk 0:01:23]}  Rxh5 {[%clk 0:01:11]} 32. gxh5 {[%clk 0:01:24]}  Rf6 {[%clk 0:01:09]} 33. Rh1 {[%clk 0:01:23]}  Ke5 {[%clk 0:01:08]} 34. Rh4 {[%clk 0:01:22]}  b4 {[%clk 0:01:07]} 35. Rg4 {[%clk 0:01:19]}  Rh6 {[%clk 0:01:07]} 36. Rg5+ {[%clk 0:00:57]}  Kd4 {[%clk 0:01:07]} 37. d6 {[%clk 0:00:56]}  Rxd6 {[%clk 0:01:05]} 38. Rxg7 {[%clk 0:00:56]}  c3 {[%clk 0:00:49]} 39. b3 {[%clk 0:00:56]}  Rh6 {[%clk 0:00:39]} 40. Rg5 {[%clk 0:00:53]}  Bf2 {[%clk 0:00:28]} 41. Kc2 {[%clk 0:00:41]}  Ke3 {[%clk 0:00:27]} 42. Rxa5 {[%clk 0:00:37]}  Rd6 {[%clk 0:00:22]} 43. Rd5 {[%clk 0:00:27]}  Rxd5 {[%clk 0:00:19]} 44. Bxd5 {[%clk 0:00:27]}  Bh4 {[%clk 0:00:18]} 45. h6 {[%clk 0:00:27]}  Bf6 {[%clk 0:00:18]} 46. h7 {[%clk 0:00:26]}  Bd4 {[%clk 0:00:17]} 47. Be4 {[%clk 0:00:26]}  Be5 {[%clk 0:00:17]} 48. Kd1 {[%clk 0:00:26]}  Bd4 {[%clk 0:00:17]} 49. Kc1 {[%clk 0:00:25]}  Be5 {[%clk 0:00:16]} 50. Kb1 {[%clk 0:00:24]}  Bf6 {[%clk 0:00:17]} 51. a4 {[%clk 0:00:18]}  bxa3 {[%clk 0:00:15]} 52. Ka2 {[%clk 0:00:19]}  Kd2 {[%clk 0:00:14]} 53. b4 {[%clk 0:00:19]}  c2 {[%clk 0:00:11]} 54. Bxc2 {[%clk 0:00:19]}  Kxc2 {[%clk 0:00:11]} 55. b5 {[%clk 0:00:20]}  Kd3 {[%clk 0:00:05]} 56. b6 {[%clk 0:00:19]}  Ke3 {[%clk 0:00:05]} 57. b7 {[%clk 0:00:19]}  Be5 {[%clk 0:00:05]} 58. h8=Q {[%clk 0:00:17]}  Bxh8 {[%clk 0:00:06]} 59. b8=Q {[%clk 0:00:18]}  Bb2 {[%clk 0:00:06]} 60. Qb7 {[%clk 0:00:18]}  Kf2 {[%clk 0:00:06]} 61. Qe4 {[%clk 0:00:19]}  Kg3 {[%clk 0:00:06]} 62. Kb3 {[%clk 0:00:19]}  Bc1 {[%clk 0:00:06]} 63. Qe1+ {[%clk 0:00:18]}  Kxf3 {[%clk 0:00:06]} 64. Qxc1 {[%clk 0:00:19]}  Kg4 {[%clk 0:00:06]} 65. Qf1 {[%clk 0:00:20]}  f3 {[%clk 0:00:07]} 66. Kxa3 {[%clk 0:00:20]}  Kg3 {[%clk 0:00:08]} 67. Kb3 {[%clk 0:00:21]}  Kf4 {[%clk 0:00:08]} 68. Kc3 {[%clk 0:00:22]}  Ke3 {[%clk 0:00:08]} 69. Qe1+ {[%clk 0:00:21]}  Kf4 {[%clk 0:00:09]} 70. Kd3 {[%clk 0:00:20]}  Kg4 {[%clk 0:00:09]} 71. Ke4 {[%clk 0:00:20]}  f2 {[%clk 0:00:07]} 72. Qxf2 {[%clk 0:00:20]}  Kg5 {[%clk 0:00:08]} 73. Qf5+ {[%clk 0:00:19]}  Kh6 {[%clk 0:00:08]} 74. Qg4 {[%clk 0:00:19]}  Kh7 {[%clk 0:00:08]} 75. Kf5 {[%clk 0:00:20]}  Kh8 {[%clk 0:00:08]} 76. Kf6 {[%clk 0:00:21]}  Kh7 {[%clk 0:00:09]} 77. Qg7# {[%clk 0:00:21]} 1-0

[Event "January 9 Late 2024"]
[Site "https://www.chess.com"]
[Date "2024.01.09"]
[Round "3"]
[White "Martins, Bruno Andre Leite"]
[Black "Llorente Zaro, Alfonso"]
[Result "0-1"]
[Board "89"]
[TimeControl "180+1"]
[WhiteFideId "1942255"]
[BlackFideId "2254131"]
[WhiteElo "2511"]
[BlackElo "2688"]
[WhiteTeam "POR"]
[BlackTeam "ESP"]
[WhiteClock "0:00:00"]
[BlackClock "0:00:07"]

1. e4 {[%clk 0:02:50]}  e6 {[%clk 0:02:59]} 2. d4 {[%clk 0:02:50]}  d5 {[%clk 0:02:59]} 3. Nd2 {[%clk 0:02:50]}  Bd7 {[%clk 0:02:53]} 4. Ngf3 {[%clk 0:02:45]}  dxe4 {[%clk 0:02:52]} 5. Nxe4 {[%clk 0:02:45]}  Bc6 {[%clk 0:02:53]} 6. Ng3 {[%clk 0:02:45]}  Nd7 {[%clk 0:02:52]} 7. Bd3 {[%clk 0:02:44]}  Ngf6 {[%clk 0:02:52]} 8. O-O {[%clk 0:02:44]}  Be7 {[%clk 0:02:52]} 9. Re1 {[%clk 0:02:44]}  b5 {[%clk 0:02:51]} 10. Bf4 {[%clk 0:02:42]}  O-O {[%clk 0:02:42]} 11. Qe2 {[%clk 0:02:38]}  Nd5 {[%clk 0:02:39]} 12. Bd2 {[%clk 0:02:37]}  a6 {[%clk 0:02:36]} 13. c3 {[%clk 0:02:31]}  N5b6 {[%clk 0:02:27]} 14. Nh5 {[%clk 0:02:29]}  Nf6 {[%clk 0:02:25]} 15. Ne5 {[%clk 0:02:26]}  Bb7 {[%clk 0:02:24]} 16. Bg5 {[%clk 0:01:44]}  Nbd5 {[%clk 0:01:59]} 17. h4 {[%clk 0:01:34]}  Ne8 {[%clk 0:01:25]} 18. Bxe7 {[%clk 0:01:17]}  Qxe7 {[%clk 0:01:26]} 19. Qg4 {[%clk 0:01:14]}  Kh8 {[%clk 0:00:58]} 20. Re2 {[%clk 0:01:07]}  g6 {[%clk 0:00:52]} 21. Ng3 {[%clk 0:01:05]}  f5 {[%clk 0:00:44]} 22. Qf3 {[%clk 0:00:56]}  Qxh4 {[%clk 0:00:42]} 23. Nd7 {[%clk 0:00:53]}  Rf7 {[%clk 0:00:40]} 24. Nc5 {[%clk 0:00:51]}  Bc6 {[%clk 0:00:28]} 25. Rxe6 {[%clk 0:00:50]}  Nd6 {[%clk 0:00:28]} 26. Qe2 {[%clk 0:00:40]}  Nf4 {[%clk 0:00:16]} 27. Qe5+ {[%clk 0:00:39]}  Kg8 {[%clk 0:00:16]} 28. Bf1 {[%clk 0:00:35]}  Raf8 {[%clk 0:00:14]} 29. Re1 {[%clk 0:00:21]}  Bd5 {[%clk 0:00:14]} 30. Re7 {[%clk 0:00:17]}  Rxe7 {[%clk 0:00:11]} 31. Qxe7 {[%clk 0:00:18]}  Qxe7 {[%clk 0:00:11]} 32. Rxe7 {[%clk 0:00:19]}  Rf7 {[%clk 0:00:11]} 33. Rxf7 {[%clk 0:00:17]}  Kxf7 {[%clk 0:00:12]} 34. Nxa6 {[%clk 0:00:17]}  Bxa2 {[%clk 0:00:07]} 35. Nxc7 {[%clk 0:00:17]}  Bc4 {[%clk 0:00:08]} 36. Bxc4+ {[%clk 0:00:11]}  bxc4 {[%clk 0:00:09]} 37. Kf1 {[%clk 0:00:10]}  Nd3 {[%clk 0:00:09]} 38. Na6 {[%clk 0:00:04]}  Nxb2 {[%clk 0:00:09]} 39. Ke2 {[%clk 0:00:04]}  Na4 {[%clk 0:00:08]} 40. Kd2 {[%clk 0:00:03]}  Ke6 {[%clk 0:00:09]} 41. f3 {[%clk 0:00:02]}  h5 {[%clk 0:00:08]} 42. Ne2 {[%clk 0:00:03]}  g5 {[%clk 0:00:08]} 43. Nb4 {[%clk 0:00:03]}  h4 {[%clk 0:00:07]} 44. Nc2 {[%clk 0:00:04]}  Nb6 {[%clk 0:00:06]} 45. Ne3 {[%clk 0:00:04]}  Nd5 {[%clk 0:00:06]} 46. Nxd5 {[%clk 0:00:03]}  Kxd5 {[%clk 0:00:07]} 47. Ke3 {[%clk 0:00:03]}  Nb5 {[%clk 0:00:07]} 48. Kd2 {[%clk 0:00:03]}  Ke6 {[%clk 0:00:07]} 49. Ng1 {[%clk 0:00:00]}  g4 {[%clk 0:00:07]} 0-1

[Event "January 9 Late 2024"]
[Site "https://www.chess.com"]
[Date "2024.01.09"]
[Round "3"]
[White "Skvortsov, Andrei"]
[Black "Silva, Caio Henrique Angelico"]
[Result "1-0"]
[Board "90"]
[TimeControl "180+1"]
[WhiteFideId "24108600"]
[BlackFideId "22777210"]
[WhiteElo "2677"]
[BlackElo "2510"]
[WhiteTeam "MNE"]
[BlackTeam "BRA"]
[WhiteClock "0:01:21"]
[BlackClock "0:00:16"]

1. e4 {[%clk 0:03:00]}  c6 {[%clk 0:02:58]} 2. d4 {[%clk 0:02:52]}  d5 {[%clk 0:02:59]} 3. e5 {[%clk 0:02:53]}  c5 {[%clk 0:02:59]} 4. c3 {[%clk 0:02:49]}  Nc6 {[%clk 0:02:56]} 5. Bb5 {[%clk 0:02:38]}  Bf5 {[%clk 0:02:48]} 6. dxc5 {[%clk 0:02:34]}  e6 {[%clk 0:02:48]} 7. b4 {[%clk 0:02:33]}  Ne7 {[%clk 0:02:47]} 8. Nf3 {[%clk 0:02:32]}  a5 {[%clk 0:02:41]} 9. a4 {[%clk 0:02:29]}  Bg4 {[%clk 0:02:31]} 10. Nbd2 {[%clk 0:02:25]}  Ng6 {[%clk 0:02:29]} 11. h3 {[%clk 0:02:25]}  Bxf3 {[%clk 0:02:27]} 12. Nxf3 {[%clk 0:02:26]}  Qc7 {[%clk 0:02:26]} 13. Qe2 {[%clk 0:02:20]}  Be7 {[%clk 0:02:19]} 14. O-O {[%clk 0:02:17]}  O-O {[%clk 0:02:19]} 15. Bxc6 {[%clk 0:02:18]}  Qxc6 {[%clk 0:02:20]} 16. Nd4 {[%clk 0:02:14]}  Qc7 {[%clk 0:02:18]} 17. f4 {[%clk 0:02:13]}  axb4 {[%clk 0:02:13]} 18. cxb4 {[%clk 0:02:12]}  b6 {[%clk 0:02:14]} 19. Nb5 {[%clk 0:02:12]}  Qc6 {[%clk 0:02:12]} 20. cxb6 {[%clk 0:02:09]}  Bxb4 {[%clk 0:02:00]} 21. Be3 {[%clk 0:02:09]}  Ba5 {[%clk 0:01:43]} 22. Rfc1 {[%clk 0:02:08]}  Qb7 {[%clk 0:01:42]} 23. Nd6 {[%clk 0:02:04]}  Qb8 {[%clk 0:01:39]} 24. Qb5 {[%clk 0:02:00]}  d4 {[%clk 0:01:15]} 25. Bxd4 {[%clk 0:01:55]}  Nxf4 {[%clk 0:01:16]} 26. b7 {[%clk 0:01:49]}  Ra7 {[%clk 0:01:12]} 27. Ra2 {[%clk 0:01:34]}  Bc7 {[%clk 0:00:20]} 28. Rxc7 {[%clk 0:01:29]}  Qxc7 {[%clk 0:00:18]} 29. Bxa7 {[%clk 0:01:30]}  Qc1+ {[%clk 0:00:19]} 30. Qf1 {[%clk 0:01:21]}  Ne2+ {[%clk 0:00:16]} 31. Rxe2 {[%clk 0:01:21]} 1-0

[Event "January 9 Late 2024"]
[Site "https://www.chess.com"]
[Date "2024.01.09"]
[Round "3"]
[White "Lewtak, Damian"]
[Black "Avramidou, Anastasia"]
[Result "0-1"]
[Board "91"]
[TimeControl "180+1"]
[WhiteFideId "1141724"]
[BlackFideId "4239873"]
[WhiteElo "2676"]
[BlackElo "2510"]
[WhiteTeam "POL"]
[BlackTeam "GRE"]
[WhiteClock "0:01:47"]
[BlackClock "0:02:04"]

1. e4 {[%clk 0:03:00]}  g6 {[%clk 0:02:58]} 2. d4 {[%clk 0:02:59]}  Bg7 {[%clk 0:02:57]} 3. Nc3 {[%clk 0:03:00]}  d6 {[%clk 0:02:55]} 4. f4 {[%clk 0:03:00]}  a6 {[%clk 0:02:55]} 5. Nf3 {[%clk 0:02:59]}  b5 {[%clk 0:02:56]} 6. Bd3 {[%clk 0:02:57]}  Bb7 {[%clk 0:02:56]} 7. Be3 {[%clk 0:02:52]}  Nd7 {[%clk 0:02:55]} 8. Qd2 {[%clk 0:02:49]}  c5 {[%clk 0:02:55]} 9. a3 {[%clk 0:02:41]}  Ngf6 {[%clk 0:02:49]} 10. e5 {[%clk 0:02:40]}  Ng4 {[%clk 0:02:49]} 11. exd6 {[%clk 0:02:36]}  exd6 {[%clk 0:02:46]} 12. Be4 {[%clk 0:02:15]}  Bxe4 {[%clk 0:02:41]} 13. Nxe4 {[%clk 0:02:16]}  Qe7 {[%clk 0:02:41]} 14. Nfg5 {[%clk 0:02:06]}  h6 {[%clk 0:02:06]} 15. dxc5 {[%clk 0:01:47]}  hxg5 {[%clk 0:02:04]} 0-1